[Event "Titled Tuesday Blitz March 08 Late 2022"]
[White "Sanal, Vahap"]
[Black "Mirzoev, Azer"]
[WhiteFideId "6300545"]
[BlackFideId "13400304"]
[WhiteElo "2603"]
[BlackElo "2525"]
[Result "1/2-1/2"]
[Round "06"]
[TimeControl "180+1"]
[Date "2022.03.08"]
[WhiteClock "0:00:34"]
[BlackClock "0:00:05"]

1. e4 {[%clk 0:03:00]}  e5 {[%clk 0:02:59]} 2. Nf3 {[%clk 0:02:59]}  Nc6 {[%clk 0:02:59]} 3. Bb5 {[%clk 0:02:57]}  a6 {[%clk 0:02:59]} 4. Ba4 {[%clk 0:02:57]}  d6 {[%clk 0:02:56]} 5. d4 {[%clk 0:02:53]}  Bd7 {[%clk 0:02:55]} 6. O-O {[%clk 0:02:44]}  Nf6 {[%clk 0:02:54]} 7. Re1 {[%clk 0:02:30]}  Be7 {[%clk 0:02:39]} 8. Bxc6 {[%clk 0:02:23]}  Bxc6 {[%clk 0:02:36]} 9. dxe5 {[%clk 0:02:22]}  dxe5 {[%clk 0:02:34]} 10. Qxd8+ {[%clk 0:02:22]}  Rxd8 {[%clk 0:02:34]} 11. Nxe5 {[%clk 0:02:22]}  Bxe4 {[%clk 0:02:33]} 12. Nc3 {[%clk 0:02:14]}  Bxc2 {[%clk 0:02:31]} 13. Bg5 {[%clk 0:02:09]}  h6 {[%clk 0:02:07]} 14. Bh4 {[%clk 0:01:55]}  g5 {[%clk 0:01:14]} 15. Bg3 {[%clk 0:01:54]}  Kf8 {[%clk 0:00:41]} 16. Nc4 {[%clk 0:01:52]}  Rd7 {[%clk 0:00:28]} 17. Be5 {[%clk 0:01:49]}  Rg8 {[%clk 0:00:25]} 18. Ne3 {[%clk 0:01:45]}  Bg6 {[%clk 0:00:23]} 19. Rac1 {[%clk 0:01:46]}  c6 {[%clk 0:00:21]} 20. Na4 {[%clk 0:01:45]}  Nd5 {[%clk 0:00:13]} 21. Ng4 {[%clk 0:01:42]}  Bd3 {[%clk 0:00:09]} 22. Nxh6 {[%clk 0:01:31]}  Rg6 {[%clk 0:00:09]} 23. Ng4 {[%clk 0:01:31]}  Re6 {[%clk 0:00:09]} 24. Nc3 {[%clk 0:01:19]}  Nxc3 {[%clk 0:00:09]} 25. Bxc3 {[%clk 0:01:20]}  Bf5 {[%clk 0:00:08]} 26. Ne5 {[%clk 0:01:17]}  Rd5 {[%clk 0:00:07]} 27. g4 {[%clk 0:01:16]}  Bh7 {[%clk 0:00:07]} 28. f3 {[%clk 0:01:16]}  Bf6 {[%clk 0:00:06]} 29. Nc4 {[%clk 0:01:02]}  Rxe1+ {[%clk 0:00:06]} 30. Rxe1 {[%clk 0:01:01]}  Bxc3 {[%clk 0:00:05]} 31. bxc3 {[%clk 0:01:02]}  b5 {[%clk 0:00:06]} 32. Ne3 {[%clk 0:01:01]}  Rd3 {[%clk 0:00:06]} 33. c4 {[%clk 0:00:59]}  b4 {[%clk 0:00:06]} 34. h4 {[%clk 0:00:57]}  gxh4 {[%clk 0:00:06]} 35. Kh2 {[%clk 0:00:58]}  Rd2+ {[%clk 0:00:06]} 36. Kh3 {[%clk 0:00:58]}  Rxa2 {[%clk 0:00:06]} 37. f4 {[%clk 0:00:59]}  Bd3 {[%clk 0:00:05]} 38. Rd1 {[%clk 0:00:54]}  Ra3 {[%clk 0:00:05]} 39. Re1 {[%clk 0:00:33]}  a5 {[%clk 0:00:05]} 40. Kxh4 {[%clk 0:00:33]}  b3 {[%clk 0:00:05]} 41. Nf1 {[%clk 0:00:14]}  b2 {[%clk 0:00:05]} 42. Nd2 {[%clk 0:00:14]}  Ra1 {[%clk 0:00:05]} 43. Re3 {[%clk 0:00:15]}  b1=Q {[%clk 0:00:05]} 44. Nxb1 {[%clk 0:00:15]}  Bxb1 {[%clk 0:00:05]} 45. f5 {[%clk 0:00:16]}  a4 {[%clk 0:00:05]} 46. Kg5 {[%clk 0:00:16]}  Ra2 {[%clk 0:00:05]} 47. Kf6 {[%clk 0:00:16]}  Rg2 {[%clk 0:00:04]} 48. g5 {[%clk 0:00:15]}  Rf2 {[%clk 0:00:04]} 49. Ke5 {[%clk 0:00:15]}  Rxf5+ {[%clk 0:00:03]} 50. Kd6 {[%clk 0:00:16]}  Rxg5 {[%clk 0:00:04]} 51. Re1 {[%clk 0:00:17]}  Bc2 {[%clk 0:00:03]} 52. c5 {[%clk 0:00:18]}  Bb3 {[%clk 0:00:02]} 53. Ra1 {[%clk 0:00:18]}  Rd5+ {[%clk 0:00:01]} 54. Kxc6 {[%clk 0:00:19]}  Rd2 {[%clk 0:00:02]} 55. Kb6 {[%clk 0:00:20]}  Rc2 {[%clk 0:00:02]} 56. c6 {[%clk 0:00:20]}  Ke7 {[%clk 0:00:02]} 57. Re1+ {[%clk 0:00:19]}  Be6 {[%clk 0:00:02]} 58. Rd1 {[%clk 0:00:20]}  Rc4 {[%clk 0:00:02]} 59. Kb5 {[%clk 0:00:20]}  Rc2 {[%clk 0:00:01]} 60. Ra1 {[%clk 0:00:21]}  Bb3 {[%clk 0:00:01]} 61. Re1+ {[%clk 0:00:21]}  Kd6 {[%clk 0:00:01]} 62. Rd1+ {[%clk 0:00:21]}  Ke6 {[%clk 0:00:01]} 63. Kb6 {[%clk 0:00:21]}  Ke5 {[%clk 0:00:01]} 64. Re1+ {[%clk 0:00:22]}  Kd4 {[%clk 0:00:01]} 65. c7 {[%clk 0:00:22]}  f5 {[%clk 0:00:01]} 66. Rf1 {[%clk 0:00:23]}  Ke4 {[%clk 0:00:01]} 67. Re1+ {[%clk 0:00:23]}  Kd4 {[%clk 0:00:02]} 68. Rh1 {[%clk 0:00:24]}  Ke4 {[%clk 0:00:02]} 69. Rh4+ {[%clk 0:00:25]}  f4 {[%clk 0:00:02]} 70. Rh3 {[%clk 0:00:26]}  f3 {[%clk 0:00:02]} 71. Rh8 {[%clk 0:00:27]}  Ke3 {[%clk 0:00:02]} 72. Re8+ {[%clk 0:00:28]}  Kf2 {[%clk 0:00:02]} 73. c8=Q {[%clk 0:00:29]}  Rxc8 {[%clk 0:00:02]} 74. Rxc8 {[%clk 0:00:30]}  Ke2 {[%clk 0:00:02]} 75. Re8+ {[%clk 0:00:30]}  Kd2 {[%clk 0:00:03]} 76. Rf8 {[%clk 0:00:30]}  Ke2 {[%clk 0:00:03]} 77. Re8+ {[%clk 0:00:30]}  Kd2 {[%clk 0:00:03]} 78. Kc5 {[%clk 0:00:31]}  f2 {[%clk 0:00:03]} 79. Rd8+ {[%clk 0:00:32]}  Ke2 {[%clk 0:00:03]} 80. Re8+ {[%clk 0:00:33]}  Kd2 {[%clk 0:00:04]} 81. Rf8 {[%clk 0:00:34]}  Ke2 {[%clk 0:00:04]} 82. Re8+ {[%clk 0:00:34]}  Kd2 {[%clk 0:00:05]} 1/2-1/2


[Site "https://www.chess.com"]

[Event "Titled Tuesday Blitz March 08 Late 2022"]
[White "Shuvalova, Polina"]
[Black "Maghsoodloo, Parham"]
[WhiteFideId "24171760"]
[BlackFideId "12539929"]
[WhiteElo "2355"]
[BlackElo "2630"]
[Result "0-1"]
[Round "06"]
[TimeControl "180+1"]
[Date "2022.03.08"]
[WhiteClock "0:00:08"]
[BlackClock "0:01:20"]

1. d4 {[%clk 0:03:00]}  Nf6 {[%clk 0:03:00]} 2. Nf3 {[%clk 0:02:59]}  g6 {[%clk 0:03:00]} 3. c4 {[%clk 0:02:59]}  Bg7 {[%clk 0:03:01]} 4. Nc3 {[%clk 0:02:59]}  d5 {[%clk 0:03:01]} 5. cxd5 {[%clk 0:02:59]}  Nxd5 {[%clk 0:03:01]} 6. e4 {[%clk 0:02:59]}  Nxc3 {[%clk 0:03:02]} 7. bxc3 {[%clk 0:03:00]}  O-O {[%clk 0:03:02]} 8. Be2 {[%clk 0:02:59]}  Bg4 {[%clk 0:03:01]} 9. O-O {[%clk 0:02:57]}  Nd7 {[%clk 0:03:01]} 10. Rb1 {[%clk 0:02:52]}  Rb8 {[%clk 0:02:50]} 11. e5 {[%clk 0:02:50]}  c5 {[%clk 0:02:49]} 12. h3 {[%clk 0:02:49]}  Bf5 {[%clk 0:02:47]} 13. Bd3 {[%clk 0:02:34]}  Bxd3 {[%clk 0:02:46]} 14. Qxd3 {[%clk 0:02:35]}  cxd4 {[%clk 0:02:44]} 15. e6 {[%clk 0:02:07]}  Ne5 {[%clk 0:02:21]} 16. exf7+ {[%clk 0:02:03]}  Rxf7 {[%clk 0:02:19]} 17. Nxe5 {[%clk 0:02:02]}  Bxe5 {[%clk 0:02:20]} 18. cxd4 {[%clk 0:01:54]}  Bxd4 {[%clk 0:02:18]} 19. Be3 {[%clk 0:01:52]}  e5 {[%clk 0:02:18]} 20. Qc4 {[%clk 0:01:40]}  Rc8 {[%clk 0:02:15]} 21. Qe6 {[%clk 0:01:38]}  Rc6 {[%clk 0:02:13]} 22. Qb3 {[%clk 0:01:34]}  Kg7 {[%clk 0:02:10]} 23. Rfd1 {[%clk 0:01:33]}  Qf6 {[%clk 0:02:09]} 24. Bxd4 {[%clk 0:01:12]}  exd4 {[%clk 0:02:09]} 25. Rd2 {[%clk 0:01:12]}  Rd6 {[%clk 0:02:08]} 26. Rbd1 {[%clk 0:01:12]}  Rfd7 {[%clk 0:02:08]} 27. Rd3 {[%clk 0:01:07]}  a6 {[%clk 0:02:04]} 28. a4 {[%clk 0:01:07]}  Qe5 {[%clk 0:02:03]} 29. Qc4 {[%clk 0:01:04]}  b5 {[%clk 0:02:01]} 30. axb5 {[%clk 0:01:03]}  axb5 {[%clk 0:02:01]} 31. Qc8 {[%clk 0:01:01]}  Rf7 {[%clk 0:01:53]} 32. Qb8 {[%clk 0:00:58]}  Qc5 {[%clk 0:01:45]} 33. R1d2 {[%clk 0:00:53]}  b4 {[%clk 0:01:43]} 34. g3 {[%clk 0:00:47]}  Rb6 {[%clk 0:01:33]} 35. Qd8 {[%clk 0:00:43]}  b3 {[%clk 0:01:31]} 36. Rd1 {[%clk 0:00:20]}  b2 {[%clk 0:01:29]} 37. Rb1 {[%clk 0:00:20]}  Rb4 {[%clk 0:01:23]} 38. Kg2 {[%clk 0:00:11]}  Qc2 {[%clk 0:01:21]} 39. Rf3 {[%clk 0:00:08]}  Qe4 {[%clk 0:01:20]} 0-1


[Site "https://www.chess.com"]

[Event "Titled Tuesday Blitz March 08 Late 2022"]
[White "Suder, Jakub"]
[Black "Chigaev, Maksim"]
[WhiteFideId "1195310"]
[BlackFideId "4108116"]
[WhiteElo "2058"]
[BlackElo "2502"]
[Result "0-1"]
[Round "06"]
[TimeControl "180+1"]
[Date "2022.03.08"]
[WhiteClock "0:01:02"]
[BlackClock "0:00:54"]

1. d4 {[%clk 0:03:00]}  Nf6 {[%clk 0:02:59]} 2. c4 {[%clk 0:02:59]}  e6 {[%clk 0:02:59]} 3. Nc3 {[%clk 0:02:59]}  Bb4 {[%clk 0:02:58]} 4. Qb3 {[%clk 0:02:59]}  a5 {[%clk 0:02:56]} 5. g3 {[%clk 0:02:58]}  d5 {[%clk 0:02:55]} 6. Nf3 {[%clk 0:02:56]}  dxc4 {[%clk 0:02:49]} 7. Qxc4 {[%clk 0:02:55]}  b6 {[%clk 0:02:50]} 8. Bg2 {[%clk 0:02:53]}  Bb7 {[%clk 0:02:50]} 9. O-O {[%clk 0:02:51]}  O-O {[%clk 0:02:50]} 10. Rd1 {[%clk 0:02:49]}  Nbd7 {[%clk 0:02:48]} 11. a3 {[%clk 0:02:34]}  Bxc3 {[%clk 0:02:47]} 12. Qxc3 {[%clk 0:02:32]}  a4 {[%clk 0:02:45]} 13. Bd2 {[%clk 0:02:27]}  Bd5 {[%clk 0:02:17]} 14. Rac1 {[%clk 0:02:16]}  Rc8 {[%clk 0:02:15]} 15. Qb4 {[%clk 0:02:13]}  Bb3 {[%clk 0:02:14]} 16. Re1 {[%clk 0:02:11]}  Nd5 {[%clk 0:02:14]} 17. Qb5 {[%clk 0:02:11]}  c5 {[%clk 0:02:09]} 18. e4 {[%clk 0:02:06]}  N5f6 {[%clk 0:01:58]} 19. dxc5 {[%clk 0:02:01]}  bxc5 {[%clk 0:01:48]} 20. Ba5 {[%clk 0:01:57]}  Qe7 {[%clk 0:01:45]} 21. Nd2 {[%clk 0:01:53]}  Rb8 {[%clk 0:01:41]} 22. Qe2 {[%clk 0:01:51]}  Ne5 {[%clk 0:01:39]} 23. Bc3 {[%clk 0:01:49]}  Nfd7 {[%clk 0:01:34]} 24. f4 {[%clk 0:01:47]}  Nc6 {[%clk 0:01:33]} 25. Nxb3 {[%clk 0:01:46]}  Rxb3 {[%clk 0:01:33]} 26. Red1 {[%clk 0:01:45]}  e5 {[%clk 0:01:25]} 27. fxe5 {[%clk 0:01:28]}  Ndxe5 {[%clk 0:01:24]} 28. Rd5 {[%clk 0:01:27]}  Nd4 {[%clk 0:01:14]} 29. Qf2 {[%clk 0:01:15]}  Nd3 {[%clk 0:01:09]} 30. Qf1 {[%clk 0:01:04]}  Nxc1 {[%clk 0:01:07]} 31. Bxd4 {[%clk 0:01:05]}  cxd4 {[%clk 0:01:04]} 32. Qxc1 {[%clk 0:01:04]}  d3 {[%clk 0:01:04]} 33. e5 {[%clk 0:01:04]}  Qa7+ {[%clk 0:01:01]} 34. Kh1 {[%clk 0:01:04]}  Qb6 {[%clk 0:01:01]} 35. Be4 {[%clk 0:01:01]}  Rxb2 {[%clk 0:00:53]} 36. Bxd3 {[%clk 0:01:02]}  Qf2 {[%clk 0:00:54]} 0-1


[Site "https://www.chess.com"]

[Event "Titled Tuesday Blitz March 08 Late 2022"]
[White "Todorovic, Bojan"]
[Black "Sztokbant, Bernardo Vainzoff"]
[WhiteFideId "917087"]
[BlackFideId "2115956"]
[WhiteElo "2266"]
[BlackElo "2237"]
[Result "0-1"]
[Round "06"]
[TimeControl "180+1"]
[Date "2022.03.09"]
[WhiteClock "0:00:20"]
[BlackClock "0:00:01"]

1. d4 {[%clk 0:02:59]}  Nf6 {[%clk 0:02:59]} 2. c4 {[%clk 0:02:58]}  g6 {[%clk 0:02:58]} 3. Nc3 {[%clk 0:02:57]}  d5 {[%clk 0:02:58]} 4. Nf3 {[%clk 0:02:52]}  Bg7 {[%clk 0:02:58]} 5. Bg5 {[%clk 0:02:51]}  c6 {[%clk 0:02:48]} 6. Qb3 {[%clk 0:02:29]}  dxc4 {[%clk 0:02:39]} 7. Qxc4 {[%clk 0:02:24]}  Be6 {[%clk 0:02:38]} 8. Qd3 {[%clk 0:02:23]}  Qb6 {[%clk 0:02:36]} 9. O-O-O {[%clk 0:01:54]}  Na6 {[%clk 0:02:31]} 10. e4 {[%clk 0:01:43]}  Nb4 {[%clk 0:02:30]} 11. Qe3 {[%clk 0:01:41]}  Ng4 {[%clk 0:02:23]} 12. Qd2 {[%clk 0:01:34]}  O-O {[%clk 0:01:52]} 13. a3 {[%clk 0:01:24]}  Na6 {[%clk 0:01:29]} 14. h3 {[%clk 0:01:23]}  Nf6 {[%clk 0:01:29]} 15. Ne5 {[%clk 0:01:14]}  Rfd8 {[%clk 0:01:17]} 16. Qe3 {[%clk 0:01:12]}  Bb3 {[%clk 0:01:00]} 17. Bc4 {[%clk 0:01:12]}  Bxc4 {[%clk 0:00:48]} 18. Nxc4 {[%clk 0:01:11]}  Qc7 {[%clk 0:00:43]} 19. Kb1 {[%clk 0:01:08]}  b5 {[%clk 0:00:34]} 20. Ne5 {[%clk 0:01:03]}  c5 {[%clk 0:00:24]} 21. Bf4 {[%clk 0:00:41]}  cxd4 {[%clk 0:00:22]} 22. Rxd4 {[%clk 0:00:41]}  Qb7 {[%clk 0:00:18]} 23. Rhd1 {[%clk 0:00:37]}  Rxd4 {[%clk 0:00:18]} 24. Qxd4 {[%clk 0:00:37]}  Nc7 {[%clk 0:00:12]} 25. f3 {[%clk 0:00:29]}  Ne6 {[%clk 0:00:12]} 26. Qe3 {[%clk 0:00:25]}  Nxf4 {[%clk 0:00:11]} 27. Qxf4 {[%clk 0:00:25]}  b4 {[%clk 0:00:08]} 28. axb4 {[%clk 0:00:23]}  Qxb4 {[%clk 0:00:09]} 29. Nc6 {[%clk 0:00:23]}  Qc5 {[%clk 0:00:05]} 30. Qc7 {[%clk 0:00:23]}  Re8 {[%clk 0:00:04]} 31. Nd5 {[%clk 0:00:21]}  Nxd5 {[%clk 0:00:03]} 32. Rxd5 {[%clk 0:00:21]}  Qg1+ {[%clk 0:00:03]} 33. Ka2 {[%clk 0:00:21]}  Qxg2 {[%clk 0:00:03]} 34. Nxe7+ {[%clk 0:00:20]}  Kh8 {[%clk 0:00:02]} 35. Rd8 {[%clk 0:00:20]}  Qxb2# {[%clk 0:00:01]} 0-1


[Site "https://www.chess.com"]

[Event "Titled Tuesday Blitz March 08 Late 2022"]
[White "Toncheva, Nadya"]
[Black "Stoleriu, George"]
[WhiteFideId "2924056"]
[BlackFideId "1227505"]
[WhiteElo "1884"]
[BlackElo "2203"]
[Result "0-1"]
[Round "06"]
[TimeControl "180+1"]
[Date "2022.03.09"]
[WhiteClock "0:00:02"]
[BlackClock "0:00:10"]

1. e4 {[%clk 0:02:59]}  e6 {[%clk 0:02:59]} 2. d4 {[%clk 0:02:59]}  d5 {[%clk 0:03:00]} 3. Nd2 {[%clk 0:02:59]}  Be7 {[%clk 0:02:42]} 4. Bd3 {[%clk 0:02:58]}  c5 {[%clk 0:02:34]} 5. exd5 {[%clk 0:02:57]}  Qxd5 {[%clk 0:02:07]} 6. Ngf3 {[%clk 0:02:57]}  cxd4 {[%clk 0:02:02]} 7. Nb3 {[%clk 0:02:56]}  Nc6 {[%clk 0:01:57]} 8. O-O {[%clk 0:02:56]}  Nf6 {[%clk 0:01:56]} 9. Nbxd4 {[%clk 0:02:53]}  Nxd4 {[%clk 0:01:55]} 10. Nxd4 {[%clk 0:02:53]}  O-O {[%clk 0:01:55]} 11. Re1 {[%clk 0:02:12]}  b6 {[%clk 0:01:51]} 12. Be2 {[%clk 0:02:04]}  Bb7 {[%clk 0:01:47]} 13. Bf3 {[%clk 0:02:00]}  Qd7 {[%clk 0:01:47]} 14. c3 {[%clk 0:01:57]}  Rfd8 {[%clk 0:01:44]} 15. Qc2 {[%clk 0:01:47]}  Rac8 {[%clk 0:01:33]} 16. Be3 {[%clk 0:01:36]}  Nd5 {[%clk 0:01:28]} 17. Qe2 {[%clk 0:01:14]}  Nxe3 {[%clk 0:01:21]} 18. Qxe3 {[%clk 0:01:11]}  Bc5 {[%clk 0:01:19]} 19. Rad1 {[%clk 0:01:09]}  Bxf3 {[%clk 0:01:03]} 20. Qxf3 {[%clk 0:01:08]}  Qa4 {[%clk 0:01:03]} 21. Qb7 {[%clk 0:00:33]}  h6 {[%clk 0:00:19]} 22. Rd3 {[%clk 0:00:32]}  Rb8 {[%clk 0:00:16]} 23. Qc7 {[%clk 0:00:15]}  Bd6 {[%clk 0:00:16]} 24. Qc6 {[%clk 0:00:09]}  Qxa2 {[%clk 0:00:13]} 25. Nxe6 {[%clk 0:00:07]}  Bxh2+ {[%clk 0:00:11]} 26. Kxh2 {[%clk 0:00:08]}  Rxd3 {[%clk 0:00:11]} 27. Nd4 {[%clk 0:00:04]}  Rd2 {[%clk 0:00:07]} 28. Re8+ {[%clk 0:00:02]}  Rxe8 {[%clk 0:00:08]} 29. Qxe8+ {[%clk 0:00:03]}  Kh7 {[%clk 0:00:08]} 30. Qe4+ {[%clk 0:00:03]}  g6 {[%clk 0:00:09]} 31. Qe7 {[%clk 0:00:03]}  Rxb2 {[%clk 0:00:08]} 32. Nc6 {[%clk 0:00:01]}  Rxf2 {[%clk 0:00:08]} 33. Ne5 {[%clk 0:00:01]}  Rxg2+ {[%clk 0:00:08]} 34. Kh3 {[%clk 0:00:01]}  Rh2+ {[%clk 0:00:09]} 35. Kg3 {[%clk 0:00:01]}  Qf2+ {[%clk 0:00:09]} 36. Kg4 {[%clk 0:00:02]}  h5+ {[%clk 0:00:10]} 37. Kg5 {[%clk 0:00:02]}  Qf5# {[%clk 0:00:10]} 0-1


[Site "https://www.chess.com"]

[Event "Titled Tuesday Blitz March 08 Late 2022"]
[White "Tristan, Leonardo"]
[Black "Kopczynski, Michal"]
[WhiteFideId "113816"]
[BlackFideId "1124200"]
[WhiteElo "2404"]
[BlackElo "2235"]
[Result "1-0"]
[Round "06"]
[TimeControl "180+1"]
[Date "2022.03.08"]
[WhiteClock "0:00:29"]
[BlackClock "0:00:02"]

1. e4 {[%clk 0:03:00]}  c5 {[%clk 0:02:59]} 2. Nc3 {[%clk 0:03:00]}  e6 {[%clk 0:02:58]} 3. f4 {[%clk 0:02:57]}  d5 {[%clk 0:02:58]} 4. Nf3 {[%clk 0:02:56]}  d4 {[%clk 0:02:58]} 5. Bb5+ {[%clk 0:02:54]}  Bd7 {[%clk 0:02:57]} 6. Bxd7+ {[%clk 0:02:54]}  Nxd7 {[%clk 0:02:57]} 7. Ne2 {[%clk 0:02:52]}  Qc7 {[%clk 0:02:50]} 8. O-O {[%clk 0:02:50]}  O-O-O {[%clk 0:02:49]} 9. d3 {[%clk 0:02:47]}  h6 {[%clk 0:02:49]} 10. b4 {[%clk 0:02:46]}  g5 {[%clk 0:02:44]} 11. fxg5 {[%clk 0:02:35]}  hxg5 {[%clk 0:02:42]} 12. Bxg5 {[%clk 0:02:35]}  f6 {[%clk 0:02:42]} 13. Bf4 {[%clk 0:02:34]}  e5 {[%clk 0:02:41]} 14. Bd2 {[%clk 0:02:34]}  c4 {[%clk 0:02:32]} 15. dxc4 {[%clk 0:01:59]}  Qxc4 {[%clk 0:02:33]} 16. c3 {[%clk 0:01:55]}  d3 {[%clk 0:02:22]} 17. Ng3 {[%clk 0:01:55]}  Bh6 {[%clk 0:02:18]} 18. Qb3 {[%clk 0:01:52]}  Qc6 {[%clk 0:02:08]} 19. Nf5 {[%clk 0:01:45]}  Kb8 {[%clk 0:01:32]} 20. Rae1 {[%clk 0:01:30]}  Bxd2 {[%clk 0:01:20]} 21. Nxd2 {[%clk 0:01:30]}  Nh6 {[%clk 0:01:20]} 22. c4 {[%clk 0:01:23]}  Ng4 {[%clk 0:00:50]} 23. h3 {[%clk 0:00:51]}  Qb6+ {[%clk 0:00:49]} 24. c5 {[%clk 0:00:51]}  Nxc5 {[%clk 0:00:49]} 25. bxc5 {[%clk 0:00:52]}  Qxc5+ {[%clk 0:00:50]} 26. Kh1 {[%clk 0:00:52]}  Nf2+ {[%clk 0:00:47]} 27. Kh2 {[%clk 0:00:53]}  Rdg8 {[%clk 0:00:34]} 28. Ne3 {[%clk 0:00:43]}  Ng4+ {[%clk 0:00:10]} 29. Nxg4 {[%clk 0:00:41]}  Rxg4 {[%clk 0:00:10]} 30. Rxf6 {[%clk 0:00:36]}  Rgh4 {[%clk 0:00:03]} 31. Rf7 {[%clk 0:00:33]}  Qc8 {[%clk 0:00:02]} 32. Re3 {[%clk 0:00:29]} 1-0


[Site "https://www.chess.com"]

[Event "Titled Tuesday Blitz March 08 Late 2022"]
[White "Van Foreest, Jorden"]
[Black "Dubov, Daniil"]
[WhiteFideId "1039784"]
[BlackFideId "24126055"]
[WhiteElo "2609"]
[BlackElo "2791"]
[Result "1/2-1/2"]
[Round "06"]
[TimeControl "180+1"]
[Date "2022.03.08"]
[WhiteClock "0:00:04"]
[BlackClock "0:00:07"]

1. Nf3 {[%clk 0:02:59]}  Nf6 {[%clk 0:02:58]} 2. b3 {[%clk 0:02:58]}  g6 {[%clk 0:02:57]} 3. Bb2 {[%clk 0:02:59]}  Bg7 {[%clk 0:02:58]} 4. g3 {[%clk 0:02:59]}  b6 {[%clk 0:02:57]} 5. Bg2 {[%clk 0:02:59]}  Bb7 {[%clk 0:02:58]} 6. O-O {[%clk 0:02:59]}  O-O {[%clk 0:02:58]} 7. c4 {[%clk 0:02:58]}  c5 {[%clk 0:02:57]} 8. d4 {[%clk 0:02:54]}  d5 {[%clk 0:02:57]} 9. dxc5 {[%clk 0:02:51]}  dxc4 {[%clk 0:02:56]} 10. cxb6 {[%clk 0:02:50]}  axb6 {[%clk 0:02:43]} 11. bxc4 {[%clk 0:02:48]}  Qxd1 {[%clk 0:02:42]} 12. Rxd1 {[%clk 0:02:47]}  Nbd7 {[%clk 0:02:42]} 13. Nbd2 {[%clk 0:02:25]}  Rfc8 {[%clk 0:02:39]} 14. Ne1 {[%clk 0:02:18]}  Bxg2 {[%clk 0:02:35]} 15. Kxg2 {[%clk 0:02:19]}  Nc5 {[%clk 0:02:35]} 16. Nd3 {[%clk 0:02:16]}  Nfd7 {[%clk 0:02:32]} 17. Bxg7 {[%clk 0:02:14]}  Kxg7 {[%clk 0:02:33]} 18. Rdb1 {[%clk 0:02:03]}  Ra4 {[%clk 0:02:11]} 19. Rb4 {[%clk 0:01:35]}  Rca8 {[%clk 0:02:00]} 20. Rxa4 {[%clk 0:01:17]}  Rxa4 {[%clk 0:02:00]} 21. Kf1 {[%clk 0:01:08]}  Ra3 {[%clk 0:01:30]} 22. Nb4 {[%clk 0:01:07]}  e6 {[%clk 0:01:23]} 23. Nc2 {[%clk 0:01:02]}  Rc3 {[%clk 0:01:21]} 24. Ne3 {[%clk 0:01:02]}  Ra3 {[%clk 0:01:16]} 25. Ke1 {[%clk 0:01:01]}  Ne5 {[%clk 0:01:15]} 26. Kd1 {[%clk 0:00:58]}  Nc6 {[%clk 0:01:05]} 27. Nc2 {[%clk 0:00:58]}  Ra4 {[%clk 0:01:00]} 28. a3 {[%clk 0:00:55]}  Ne5 {[%clk 0:00:49]} 29. Rb1 {[%clk 0:00:55]}  Ned7 {[%clk 0:00:42]} 30. Rb4 {[%clk 0:00:54]}  Ra7 {[%clk 0:00:43]} 31. Nb1 {[%clk 0:00:54]}  Kf6 {[%clk 0:00:42]} 32. Nc3 {[%clk 0:00:54]}  Ke7 {[%clk 0:00:42]} 33. Nb5 {[%clk 0:00:55]}  Ra8 {[%clk 0:00:40]} 34. Ncd4 {[%clk 0:00:55]}  Ne5 {[%clk 0:00:36]} 35. h3 {[%clk 0:00:52]}  h5 {[%clk 0:00:33]} 36. f3 {[%clk 0:00:44]}  g5 {[%clk 0:00:32]} 37. Kd2 {[%clk 0:00:43]}  g4 {[%clk 0:00:31]} 38. hxg4 {[%clk 0:00:42]}  hxg4 {[%clk 0:00:32]} 39. Ke3 {[%clk 0:00:39]}  Rg8 {[%clk 0:00:30]} 40. f4 {[%clk 0:00:38]}  Ned7 {[%clk 0:00:30]} 41. Nc6+ {[%clk 0:00:35]}  Kf6 {[%clk 0:00:30]} 42. Nc3 {[%clk 0:00:31]}  Rh8 {[%clk 0:00:29]} 43. Ne5 {[%clk 0:00:16]}  Nxe5 {[%clk 0:00:20]} 44. fxe5+ {[%clk 0:00:17]}  Kxe5 {[%clk 0:00:20]} 45. Rxb6 {[%clk 0:00:17]}  Rh3 {[%clk 0:00:17]} 46. Kf2 {[%clk 0:00:09]}  Kd4 {[%clk 0:00:15]} 47. Nb5+ {[%clk 0:00:07]}  Kxc4 {[%clk 0:00:16]} 48. Nd6+ {[%clk 0:00:08]}  Kd5 {[%clk 0:00:16]} 49. Kg2 {[%clk 0:00:06]}  f5 {[%clk 0:00:15]} 50. Nb5 {[%clk 0:00:03]}  Ne4 {[%clk 0:00:13]} 51. Nc7+ {[%clk 0:00:04]}  Kd4 {[%clk 0:00:12]} 52. Nxe6+ {[%clk 0:00:03]}  Ke5 {[%clk 0:00:13]} 53. Nf8 {[%clk 0:00:03]}  Rxg3+ {[%clk 0:00:13]} 54. Kf1 {[%clk 0:00:03]}  Rxa3 {[%clk 0:00:12]} 55. Ng6+ {[%clk 0:00:03]}  Kd4 {[%clk 0:00:13]} 56. Ne7 {[%clk 0:00:03]}  f4 {[%clk 0:00:09]} 57. Rb4+ {[%clk 0:00:03]}  Ke5 {[%clk 0:00:07]} 58. Ng6+ {[%clk 0:00:03]}  Kf5 {[%clk 0:00:08]} 59. Ne7+ {[%clk 0:00:04]}  Ke5 {[%clk 0:00:07]} 60. Nc6+ {[%clk 0:00:04]}  Kd5 {[%clk 0:00:07]} 61. Ne7+ {[%clk 0:00:04]}  Ke5 {[%clk 0:00:07]} 1/2-1/2


[Site "https://www.chess.com"]